fUSD/lending_fUSD_20240418
["ID","MTS","AMOUNT","RATE_DAILY","PERIOD"]
[322893476,1713483046935,-5937.65,0.00016845,2]
[322893477,1713483046944,-1751.36,0.00016845,2]
[322893478,1713483046953,-1042.65,0.00016845,2]
[322893479,1713483046962,-500.0,0.00016845,2]
[322893480,1713483046971,-500.0,0.00016845,2]
[322893481,1713483046981,-500.0,0.00016845,2]
[322893482,1713483046990,-500.0,0.00016845,2]
[322893483,1713483046999,-3103.53,0.00016845,2]
[322893484,1713483047008,-733.52,0.00016845,2]
[322893485,1713483047018,-1554.44,0.00016845,2]
[322893486,1713483047027,-500.0,0.00016845,2]
[322893487,1713483047036,-500.0,0.00016845,2]
[322893488,1713483047045,-7552.15,0.00016845,2]
[322893489,1713483047054,-2596.17,0.00016845,2]
[322893490,1713483047063,-728.01,0.00016845,2]
[322893491,1713483047074,-500.0,0.00016845,2]
[322893492,1713483047083,-2567.03,0.00016845,2]
[322893493,1713483047092,-4372.5,0.00016845,2]
[322893494,1713483047102,-13343.15,0.00016845,2]
[322893495,1713483047111,-500.0,0.00016845,2]
[322893496,1713483047119,-500.0,0.00016845,2]
[322893497,1713483047128,-10316.83,0.00016845,2]
[322893498,1713483047138,-10316.83,0.00016845,2]
[322893499,1713483047148,-500.0,0.00016845,2]
[322893500,1713483047159,-500.0,0.00016845,2]
[322893501,1713483047169,-1036.07,0.00016845,2]
[322893502,1713483047178,-5143.75,0.00016845,2]
[322893503,1713483047187,-1036.07,0.00016845,2]
[322893504,1713483047196,-500.0,0.00016845,2]
[322893505,1713483047205,-500.0,0.00016845,2]
[322893506,1713483047214,-7409.9,0.00016845,2]
[322893507,1713483047223,-1031.73,0.00016845,2]
[322893508,1713483047232,-2761.32,0.00016845,2]
[322893509,1713483047241,-500.0,0.00016845,2]
[322893510,1713483047250,-500.0,0.00016845,2]
[322893511,1713483047259,-456.99399837,0.00016845,2]
[322893512,1713483047268,-500.0,0.00016845,2]
[322893513,1713483047277,-8523.51,0.00016845,2]
[322893514,1713483047286,-8523.51,0.00016845,2]
[322893515,1713483047295,-2022.69,0.00016845,2]
[322893516,1713483047304,-500.0,0.00016845,2]
[322893517,1713483047313,-1354.15,0.00016845,2]
[322893518,1713483047322,-500.0,0.00016845,2]
[322893519,1713483047331,-9983.53,0.00016845,2]
[322893520,1713483047340,-500.0,0.00016845,2]
[322893521,1713483047349,-4300.36,0.00016845,2]
[322893522,1713483047359,-4300.36,0.00016845,2]
[322893523,1713483047368,-1305.12,0.00016845,2]
[322893524,1713483047377,-924.67,0.00016845,2]
[322893525,1713483047387,-500.0,0.00016845,2]
[322893526,1713483047398,-799.05,0.00016845,2]
[322893527,1713483047407,-1092.02,0.00016845,2]
[322893528,1713483047419,-1042.03,0.00016845,2]
[322893529,1713483047430,-500.0,0.00016845,2]
[322893530,1713483047440,-1135.16,0.00016845,2]
[322893531,1713483047450,-500.0,0.00016845,2]
[322893532,1713483047461,-1431.79,0.00016845,2]
[322893533,1713483047470,-10916.42,0.00016845,2]
[322893534,1713483047480,-885.87,0.00016845,2]
[322893535,1713483047489,-2152.41,0.00016845,2]
[322893536,1713483047498,-500.0,0.00016845,2]
[322893537,1713483047508,-2152.41,0.00016845,2]
[322893538,1713483047518,-1331.54,0.00016845,2]
[322893539,1713483047527,-500.0,0.00016845,2]
[322893540,1713483047537,-607.75,0.00016845,2]
[322893541,1713483047548,-500.0,0.00016845,2]
[322893542,1713483047557,-500.0,0.00016845,2]
[322893543,1713483047566,-13655.78,0.00016845,2]
[322893544,1713483047575,-500.0,0.00016845,2]
[322893545,1713483047584,-3732.61,0.00016845,2]
[322893546,1713483047593,-500.0,0.00016845,2]
[322893547,1713483047602,-36519.05,0.00016845,2]
[322893548,1713483047612,-36519.05,0.00016845,2]
[322893549,1713483047623,-229.14892924,0.00016845,2]
[322893550,1713483047633,-4970.35,0.00016845,2]
[322893551,1713483047643,-2824.52,0.00016845,2]
[322893552,1713483047652,-500.0,0.00016845,2]
[322893553,1713483047661,-500.0,0.00016845,2]
[322893554,1713483047671,-500.0,0.00016845,2]
[322893555,1713483047680,-5397.08,0.00016845,2]
[322893556,1713483047689,-500.0,0.00016845,2]
[322893557,1713483047698,-500.0,0.00016845,2]
[322893558,1713483047709,-500.0,0.00016845,2]
[322893559,1713483047719,-778.82,0.00016845,2]
[322893560,1713483047730,-948.83,0.00016845,2]
[322893561,1713483047740,-500.0,0.00016845,2]
[322893562,1713483047750,-500.0,0.00016845,2]
[322893563,1713483047759,-4033.82,0.00016845,2]
[322893564,1713483047769,-4033.82,0.00016845,2]
[322893565,1713483047778,-707.1,0.00016845,2]
[322893566,1713483047787,-6324.99,0.00016845,2]
[322893567,1713483047797,-8910.16,0.00016845,2]
[322893568,1713483047806,-500.0,0.00016845,2]
[322893569,1713483047815,-1339.72,0.00016845,2]
[322893570,1713483047825,-1076.03,0.00016845,2]
[322893571,1713483047834,-500.0,0.00016845,2]
[322893572,1713483047843,-17156.25,0.00016845,2]
[322893573,1713483047854,-17156.25,0.00016845,2]
[322893574,1713483047864,-500.0,0.00016845,2]
[322893575,1713483047874,-527.60956795,0.00016845,2]
[322893576,1713483047882,-1180.99,0.00016845,2]
[322893577,1713483047892,-500.0,0.00016845,2]
[322893578,1713483047901,-500.0,0.00016845,2]
[322893579,1713483047910,-43360.57,0.00016845,2]
[322893580,1713483047919,-43360.57,0.00016845,2]
[322893581,1713483047928,-1914.57,0.00016845,2]
[322893582,1713483047937,-12469.53,0.00016845,2]
[322893583,1713483047946,-12469.53,0.00016845,2]
[322893584,1713483047955,-12469.53,0.00016845,2]
[322893585,1713483047964,-2447.79,0.00016845,2]
[322893586,1713483047973,-7710.72,0.00016845,2]
[322893587,1713483047982,-12469.53,0.00016845,2]
[322893588,1713483047991,-500.0,0.00016845,2]
[322893589,1713483048000,-12469.53,0.00016845,2]
[322893590,1713483048009,-500.0,0.00016845,2]
[322893591,1713483048018,-500.0,0.00016845,2]
[322893592,1713483048028,-500.0,0.00016845,2]
[322893593,1713483048038,-1056.22,0.00016845,2]
[322893594,1713483048047,-3243.8,0.00016845,2]
[322893595,1713483048055,-500.0,0.00016845,2]
[322893596,1713483048065,-787.29,0.00016845,2]
[322893597,1713483048077,-9857.21,0.00016845,2]
[322893598,1713483048086,-9857.21,0.00016845,2]
[322893599,1713483048095,-4897.0,0.00016845,2]
[322893600,1713483048111,-3856.37,0.00016845,2]
[322893601,1713483048119,-500.0,0.00016845,2]
[322893602,1713483048129,-9857.21,0.00016845,2]
[322893603,1713483048138,-9857.21,0.00016845,2]
[322893604,1713483048147,-500.0,0.00016845,2]
[322893605,1713483048156,-9857.21,0.00016845,2]
[322893606,1713483048166,-500.0,0.00016845,2]
[322893607,1713483048175,-500.0,0.00016845,2]
[322893608,1713483048184,-208.79,0.00016845,2]
[322893609,1713483048193,-500.0,0.00016845,2]
[322893610,1713483048202,-977.87,0.00016845,2]
[322893611,1713483048211,-500.0,0.00016845,2]
[322893612,1713483048220,-500.0,0.00016845,2]
[322893613,1713483048229,-500.0,0.00016845,2]
[322893614,1713483048238,-500.0,0.00016845,2]
[322893615,1713483048247,-864.43,0.00016845,2]
[322893616,1713483048256,-2233.01,0.00016845,2]
[322893617,1713483048265,-7365.56,0.00016845,2]
[322893618,1713483048275,-1028.51,0.00016845,2]
[322893619,1713483048284,-500.0,0.00016845,2]
[322893620,1713483048292,-500.0,0.00016845,2]
[322893621,1713483048302,-10591.72,0.00016845,2]
[322893622,1713483048311,-4542.8,0.00016845,2]
[322893623,1713483048319,-4542.8,0.00016845,2]
[322893624,1713483048329,-5439.42,0.00016845,2]
[322893625,1713483048338,-5439.42,0.00016845,2]
[322893626,1713483048347,-5439.42,0.00016845,2]
[322893627,1713483048360,-174.28200348,0.00016845,2]
[322893628,1713483049257,-325.71799652,0.00016845,2]
[322893629,1713483049268,-300.09056883,0.00016845,2]
[322893630,1713483049298,-1784.52,0.00016844,2]
[322893631,1713483049308,-5139.32943117,0.00016845,2]
[322893632,1713483049317,-3468.28313659,0.00016845,2]
[322893633,1713483049373,959.49,0.00015778,2]
[322893634,1713483049386,-1971.13686341,0.00016845,2]
[322893635,1713483049395,-5439.42,0.00016845,2]
[322893636,1713483049405,-7866.23,0.00016845,2]
[322893637,1713483049414,-500.0,0.00016845,2]
[322893638,1713483049424,-1085.65,0.00016845,2]
[322893639,1713483049433,-500.0,0.00016845,2]
[322893640,1713483049805,-500.0,0.00016845,2]
[322893641,1713483049815,-699.1,0.00016845,2]
[322893642,1713483049825,-699.1,0.00016845,2]
[322893643,1713483049836,-500.0,0.00016845,2]
[322893644,1713483049846,-500.0,0.00016845,2]
[322893645,1713483049858,-1470.51,0.00016845,2]
[322893646,1713483049867,-10204.61767259,0.00016845,2]
[322893647,1713483050706,-710.97,0.00016799,2]
[322893648,1713483050717,-710.97,0.00016844,2]
[322893649,1713483050727,-7856.24232741,0.00016845,2]
[322893650,1713483050737,-946.54,0.00016845,2]
[322893651,1713483050747,-18060.86,0.00016845,2]
[322893652,1713483050757,-946.54,0.00016845,2]
[322893653,1713483050767,-18060.86,0.00016845,2]
[322893654,1713483050778,-946.54,0.00016845,2]
[322893655,1713483050787,-946.54,0.00016845,2]
[322893656,1713483050797,-18060.86,0.00016845,2]
[322893657,1713483050806,-946.54,0.00016845,2]
[322893658,1713483050815,-18060.86,0.00016845,2]
[322893659,1713483050825,-500.0,0.00016845,2]
[322893660,1713483050835,-661.35,0.00016845,2]
[322893661,1713483050845,-500.0,0.00016845,2]
[322893662,1713483050855,-18060.86,0.00016845,2]
[322893663,1713483050865,-500.0,0.00016845,2]
[322893664,1713483050875,-500.0,0.00016845,2]
[322893665,1713483050885,-23779.28,0.00016845,2]
[322893666,1713483050895,-583.57,0.00016845,2]
[322893667,1713483050905,-583.57,0.00016845,2]
[322893668,1713483050915,-1094.68,0.00016845,2]
[322893669,1713483050924,-500.0,0.00016845,2]
[322893670,1713483050933,-17758.41,0.00016845,2]
[322893671,1713483050944,-6342.95,0.00016845,2]
[322893672,1713483050955,-500.0,0.00016845,2]
[322893673,1713483050966,-839.69,0.00016845,2]
[322893674,1713483050977,-500.0,0.00016845,2]
[322893675,1713483050987,-753.28,0.00016845,2]
[322893676,1713483050998,-5189.79,0.00016845,2]
[322893677,1713483051008,-1628.26,0.00016845,2]
[322893678,1713483051018,-5189.79,0.00016845,2]
[322893679,1713483051028,-29752.33,0.00016845,2]
[322893680,1713483051038,-500.0,0.00016845,2]
[322893681,1713483051049,-1771.72,0.00016845,2]
[322893682,1713483051059,-833.63,0.00016845,2]
[322893683,1713483051068,-500.0,0.00016845,2]
[322893684,1713483051081,-500.0,0.00016845,2]
[322893685,1713483051090,-500.0,0.00016845,2]
[322893686,1713483051100,-500.0,0.00016845,2]
[322893687,1713483051110,-500.0,0.00016845,2]
[322893688,1713483051120,-500.0,0.00016845,2]
[322893689,1713483051130,-500.0,0.00016845,2]
[322893690,1713483051139,-500.0,0.00016845,2]
[322893691,1713483051148,-33661.94,0.00016845,2]
[322893692,1713483051160,-572.30833704,0.00016845,2]
[322893693,1713483051170,-500.0,0.00016845,2]
[322893694,1713483051179,-614.16,0.00016845,2]
[322893695,1713483051188,-614.16,0.00016845,2]
[322893696,1713483051197,-500.0,0.00016845,2]
[322893697,1713483051206,-551.97964867,0.00016845,2]
[322893698,1713483051216,-500.0,0.00016845,2]
[322893699,1713483051226,-616.03,0.00016845,2]
[322893700,1713483051236,-500.0,0.00016845,2]
[322893701,1713483051247,-2657.87,0.00016845,2]
[322893702,1713483051256,-500.0,0.00016845,2]
[322893703,1713483051266,-3801.68,0.00016845,2]
[322893704,1713483051274,-476.66807938,0.00016845,2]
[322893705,1713483051315,-3284.54187124,0.00016845,2]
[322893706,1713483052232,40.38236,0.00015778,2]
[322893707,1713483052256,620.55708103,0.00015778,2]
[322893708,1713483053408,-2898.67779042,0.00015778,2]
[322893709,1713483053434,-2453.72276855,0.00015778,2]
[322893710,1713483053444,-3805.4,0.00016798,2]
[322893711,1713483053453,-4254.08,0.00016798,2]
[322893712,1713483053463,-1367.41,0.00016799,2]
[322893713,1713483053472,-3805.4,0.00016843,2]
[322893714,1713483053480,-3805.4,0.00016843,2]
[322893715,1713483053489,-4254.08,0.00016843,2]
[322893716,1713483053499,-4254.08,0.00016843,2]
[322893717,1713483053508,-500.0,0.00016844,2]
[322893718,1713483053517,-1367.41,0.00016844,2]
[322893719,1713483053526,-3805.4,0.00016844,2]
[322893720,1713483053534,-1367.41,0.00016844,2]
[322893721,1713483053543,-3805.4,0.00016844,2]
[322893722,1713483053552,-1367.41,0.00016844,2]
[322893723,1713483053561,-3805.4,0.00016844,2]
[322893724,1713483053570,-4254.08,0.00016844,2]
[322893725,1713483053579,-3805.4,0.00016844,2]
[322893726,1713483053588,-4254.08,0.00016844,2]
[322893727,1713483053597,-3805.4,0.00016844,2]
[322893728,1713483053606,-4254.08,0.00016844,2]
[322893729,1713483053615,-18350.11004938,0.00016845,2]
[322893730,1713483053624,-4194.07,0.00016845,2]
[322893731,1713483053634,-4194.07,0.00016845,2]
[322893732,1713483053643,-4194.07,0.00016845,2]
[322893733,1713483053652,-4194.07,0.00016845,2]
[322893734,1713483053662,-500.0,0.00016845,2]
[322893735,1713483053671,-1768.08,0.00016845,2]
[322893736,1713483053680,-4194.07,0.00016845,2]
[322893737,1713483053689,-500.0,0.00016845,2]
[322893738,1713483053698,-4194.07,0.00016845,2]
[322893739,1713483053708,-612.75,0.00016845,2]
[322893740,1713483053718,-500.0,0.00016845,2]
[322893741,1713483053727,-500.0,0.00016845,2]
[322893742,1713483053737,-500.0,0.00016845,2]
[322893743,1713483053746,-2447.83,0.00016845,2]
[322893744,1713483053755,-500.0,0.00016845,2]
[322893745,1713483053764,-6012.54,0.00016845,2]
[322893746,1713483053774,-500.0,0.00016845,2]
[322893747,1713483053783,-286.51704913,0.00016845,2]
[322893748,1713483053793,-1671.64,0.00016845,2]
[322893749,1713483053802,-500.0,0.00016845,2]
[322893750,1713483053811,-6362.8,0.00016845,2]
[322893751,1713483053821,-500.0,0.00016845,2]
[322893752,1713483053830,-6476.86,0.00016845,2]
[322893753,1713483053840,-6476.86,0.00016845,2]
[322893754,1713483053850,-6476.86,0.00016845,2]
[322893755,1713483053860,-6476.86,0.00016845,2]
[322893756,1713483053869,-6476.86,0.00016845,2]
[322893757,1713483053878,-500.0,0.00016845,2]
[322893758,1713483053887,-1175.63,0.00016845,2]
[322893759,1713483053896,-2080.81,0.00016845,2]
[322893760,1713483053905,-1083.41,0.00016845,2]
[322893761,1713483053914,-4574.93,0.00016845,2]
[322893762,1713483053924,-626.70516286,0.00016845,2]
[322893763,1713483053933,-500.0,0.00016845,2]
[322893764,1713483053942,-1209.3,0.00016845,2]
[322893765,1713483053951,-1209.3,0.00016845,2]
[322893766,1713483053960,-1209.3,0.00016845,2]
[322893767,1713483053969,-1555.63,0.00016845,2]
[322893768,1713483053978,-1209.3,0.00016845,2]
[322893769,1713483053987,-516.02,0.00016845,2]
[322893770,1713483053996,-1209.3,0.00016845,2]
[322893771,1713483054005,-500.0,0.00016845,2]
[322893772,1713483054014,-500.0,0.00016845,2]
[322893773,1713483054023,-3357.87,0.00016845,2]
[322893774,1713483054033,-2354.62,0.00016845,2]
[322893775,1713483054042,-1225.39,0.00016845,2]
[322893776,1713483054051,-3357.87,0.00016845,2]
[322893777,1713483054060,-2354.62,0.00016845,2]
[322893778,1713483054069,-7772.14,0.00016845,2]
[322893779,1713483054081,-10004.83,0.00016845,2]
[322893780,1713483054090,-1578.16,0.00016845,2]
[322893781,1713483054099,-1578.16,0.00016845,2]
[322893782,1713483054109,-1578.16,0.00016845,2]
[322893783,1713483054119,-500.0,0.00016845,2]
[322893784,1713483054128,-1578.16,0.00016845,2]
[322893785,1713483054137,-843.91,0.00016845,2]
[322893786,1713483054146,-1578.16,0.00016845,2]
[322893787,1713483054156,-843.91,0.00016845,2]
[322893788,1713483054166,-1578.16,0.00016845,2]
[322893789,1713483054176,-843.91,0.00016845,2]
[322893790,1713483054186,-843.91,0.00016845,2]
[322893791,1713483054195,-500.0,0.00016845,2]
[322893792,1713483054205,-843.91,0.00016845,2]
[322893793,1713483054215,-500.0,0.00016845,2]
[322893794,1713483054224,-843.91,0.00016845,2]
[322893795,1713483054233,-953.67,0.00016845,2]
[322893796,1713483054242,-500.0,0.00016845,2]
[322893797,1713483054252,-1004.99,0.00016845,2]
[322893798,1713483054261,-500.0,0.00016845,2]
[322893799,1713483054270,-1004.99,0.00016845,2]
[322893800,1713483054279,-726.49,0.00016845,2]
[322893801,1713483054288,-1004.99,0.00016845,2]
[322893802,1713483054297,-726.49,0.00016845,2]
[322893803,1713483054306,-1563.53,0.00016845,2]
[322893804,1713483054315,-1004.99,0.00016845,2]
[322893805,1713483054325,-500.0,0.00016845,2]
[322893806,1713483054335,-1004.99,0.00016845,2]
[322893807,1713483054345,-500.0,0.00016845,2]
[322893808,1713483054354,-1004.99,0.00016845,2]
[322893809,1713483054366,-500.0,0.00016845,2]
[322893810,1713483054375,-58249.18,0.00016845,2]
[322893811,1713483054384,-617.85,0.00016845,2]
[322893812,1713483054394,-500.0,0.00016845,2]
[322893813,1713483054403,-617.85,0.00016845,2]
[322893814,1713483054412,-2657.78,0.00016845,2]
[322893815,1713483054421,-953.04,0.00016845,2]
[322893816,1713483054430,-4410.8,0.00016845,2]
[322893817,1713483054439,-617.85,0.00016845,2]
[322893818,1713483054448,-617.85,0.00016845,2]
[322893819,1713483054457,-617.85,0.00016845,2]
[322893820,1713483054466,-617.85,0.00016845,2]
[322893821,1713483054475,-786.14,0.00016845,2]
[322893822,1713483054484,-1575.57,0.00016845,2]
[322893823,1713483054493,-786.14,0.00016845,2]
[322893824,1713483054502,-1575.57,0.00016845,2]
[322893825,1713483054511,-1575.57,0.00016845,2]
[322893826,1713483054520,-786.14,0.00016845,2]
[322893827,1713483054529,-1575.57,0.00016845,2]
[322893828,1713483054538,-1575.57,0.00016845,2]
[322893829,1713483054549,-786.14,0.00016845,2]
[322893830,1713483054558,-1575.57,0.00016845,2]
[322893831,1713483054568,-786.14,0.00016845,2]
[322893832,1713483054577,-786.14,0.00016845,2]
[322893833,1713483054586,-500.0,0.00016845,2]
[322893834,1713483054595,-2503.74,0.00016845,2]
[322893835,1713483054604,-548.94,0.00016845,2]
[322893836,1713483054615,-8006.62,0.00016845,2]
[322893837,1713483054624,-5668.85,0.00016845,2]
[322893838,1713483054633,-1004.98,0.00016845,2]
[322893839,1713483054643,-828.66,0.00016845,2]
[322893840,1713483054652,-500.0,0.00016845,2]
[322893841,1713483054661,-2328.89,0.00016845,2]
[322893842,1713483054670,-2328.89,0.00016845,2]
[322893843,1713483054679,-1784.52,0.00016845,2]
[322893844,1713483054688,-2328.89,0.00016845,2]
[322893845,1713483054698,-1784.52,0.00016845,2]
[322893846,1713483054707,-2328.89,0.00016845,2]
[322893847,1713483054716,-1784.52,0.00016845,2]
[322893848,1713483054726,-2328.89,0.00016845,2]
[322893849,1713483054735,-1784.52,0.00016845,2]
[322893850,1713483054745,-2328.89,0.00016845,2]
[322893851,1713483054754,-1784.52,0.00016845,2]
[322893852,1713483054763,-710.97,0.00016845,2]
[322893853,1713483054773,-1784.52,0.00016845,2]
[322893854,1713483054782,-710.97,0.00016845,2]
[322893855,1713483054791,-1784.52,0.00016845,2]
[322893856,1713483054800,-1784.52,0.00016845,2]
[322893857,1713483054810,-1784.52,0.00016845,2]
[322893858,1713483054820,-1784.52,0.00016845,2]
[322893859,1713483054829,-1784.52,0.00016845,2]
[322893860,1713483054838,-159.5049702,0.00016845,2]
[322893861,1713483054894,-340.4950298,0.00016845,2]
[322893862,1713483054904,-1784.72987217,0.00016845,2]
[322893863,1713483054913,-451.46072549,0.00016845,2]
[322893864,1713483056355,-500.0,0.00016798,2]
[322893865,1713483056366,-500.0,0.00016843,2]
[322893866,1713483056375,-500.0,0.00016843,2]
[322893867,1713483056384,-500.0,0.00016844,2]
[322893868,1713483056394,-500.0,0.00016844,2]
[322893869,1713483056403,-500.0,0.00016844,2]
[322893870,1713483056411,-232.95,0.00016844,2]
[322893871,1713483056420,-915.94927451,0.00016845,2]
[322893872,1713483056429,-1367.41,0.00016845,2]
[322893873,1713483056438,-1659.79302063,0.00016845,2]
[322893874,1713483056449,-335.27295591,0.00016845,2]
[322893875,1713483391617,3307.0,0.00028208,120]
[322893876,1713483500790,381.7,0.0001381,2]
[322893878,1713484007260,1000.0,0.0001515,2]
[322893879,1713484056157,386.79,0.00013247,2]
[322893880,1713484136468,1743.70839054,0.00012522,2]
[322893881,1713484136639,4443.75999078,0.00013247,2]
[322893882,1713484137372,19665.31027831,0.00013247,2]
[322893883,1713484149132,-155.0,0.0001551,2]
[322893884,1713484149153,-386.79,0.00015511,2]
[322893885,1713484149174,-162.36,0.00015633,2]
[322893886,1713484149193,-162.36,0.00015637,2]
[322893887,1713484149216,-162.36,0.00015642,2]
[322893888,1713484149236,-162.36,0.00015646,2]
[322893889,1713484149259,-162.36,0.0001565,2]
[322893890,1713484149281,-162.36,0.00015654,2]
[322893891,1713484149301,-162.36,0.00015658,2]
[322893892,1713484149320,-162.36,0.00015662,2]
[322893893,1713484149339,-150.0,0.00015664,2]
[322893894,1713484149362,-26175.7108375,0.00015665,2]
[322893896,1713484151685,19665.31027831,0.00013247,2]
[322893897,1713484158133,343.85766626,0.00013247,2]
[322893898,1713484159094,-25019.27106424,0.00015665,2]
[322893899,1713484159394,545.48295772,0.00010598,2]
[322893900,1713484173544,545.48295772,0.00010598,2]
[322893901,1713484177394,19665.31027831,0.00013247,2]
[322893902,1713484188170,150.0,0.00015395,2]
[322893903,1713484191342,545.48295772,0.00010598,2]
[322893904,1713484196292,638.98,0.00015412,2]
[322893905,1713484197372,17879.04411547,0.00013247,2]
[322893906,1713484209837,324.87678537,0.00010598,2]
[322893916,1713484232617,-1133.8,0.00015665,2]
[322893917,1713484232804,-11631.87808505,0.00015665,2]
[322893918,1713484232854,-36322.03156181,0.00015665,2]
[322893919,1713484232863,-162.36,0.00015666,2]
[322893920,1713484232873,-7713.07,0.00015666,2]
[322893921,1713484232882,-8773.34,0.00015666,2]
[322893922,1713484232892,-162.36,0.0001567,2]
[322893923,1713484232901,-162.36,0.00015674,2]
[322893924,1713484232913,-162.36,0.00015679,2]
[322893925,1713484232923,-162.36,0.00015683,2]
[322893926,1713484232932,-162.36,0.00015687,2]
[322893927,1713484232942,-162.36,0.00015691,2]
[322893928,1713484232951,-162.36,0.00015695,2]
[322893929,1713484232962,-162.36,0.00015699,2]
[322893930,1713484232971,-162.36,0.00015703,2]
[322893931,1713484232980,-162.36,0.00015707,2]
[322893932,1713484232990,-162.36,0.00015711,2]
[322893933,1713484232999,-165.55,0.00015813,2]
[322893934,1713484233009,-1250.0,0.00016,2]
[322893935,1713484233018,-150.0,0.00016055,2]
[322893936,1713484233028,-165.55,0.00016088,2]
[322893937,1713484233037,-150.0,0.000161,2]
[322893938,1713484233047,-150.0,0.000161,2]
[322893939,1713484233056,-161.98617853,0.00016115,2]
[322893940,1713484233066,-412.89,0.00016219,2]
[322893941,1713484233075,-909.21,0.00016219,2]
[322893942,1713484233084,-167.82,0.00016246,2]
[322893943,1713484233093,-150.0,0.00016278,2]
[322893944,1713484233103,-150.0,0.000163,2]
[322893945,1713484233112,-165.55,0.00016362,2]
[322893946,1713484233121,-150.0,0.00016378,2]
[322893947,1713484233130,-521.64,0.00016378,2]
[322893948,1713484233140,-162.56,0.00016378,2]
[322893949,1713484233150,-521.64,0.00016378,2]
[322893950,1713484233161,-300.0,0.00016378,2]
[322893951,1713484233171,-305.55,0.00016378,2]
[322893952,1713484233180,-150.0,0.00016378,2]
[322893953,1713484233190,-150.0,0.00016378,2]
[322893954,1713484233199,-150.0,0.00016378,2]
[322893955,1713484233208,-150.0,0.00016378,2]
[322893956,1713484233217,-521.64,0.00016378,2]
[322893957,1713484233227,-521.64,0.00016378,2]
[322893958,1713484233236,-150.0,0.00016378,2]
[322893959,1713484233245,-521.64,0.00016378,2]
[322893960,1713484233255,-521.64,0.00016378,2]
[322893961,1713484233264,-150.0,0.00016378,2]
[322893962,1713484233274,-521.64,0.00016378,2]
[322893963,1713484233283,-521.64,0.00016378,2]
[322893964,1713484233292,-350.16,0.00016478,2]
[322893965,1713484233301,-350.16,0.00016478,2]
[322893966,1713484233311,-350.16,0.00016478,2]
[322893967,1713484233319,-350.16,0.00016478,2]
[322893968,1713484233328,-672.93,0.00016536,2]
[322893969,1713484233337,-248.38,0.00016536,2]
[322893970,1713484233346,-412.89,0.00016536,2]
[322893971,1713484233355,-909.21,0.00016536,2]
[322893972,1713484233364,-412.89,0.00016536,2]
[322893973,1713484233374,-909.21,0.00016536,2]
[322893974,1713484233383,-412.89,0.00016536,2]
[322893975,1713484233392,-909.21,0.00016536,2]
[322893976,1713484233401,-350.16,0.00016578,2]
[322893977,1713484233412,-350.16,0.00016578,2]
[322893978,1713484233421,-350.16,0.00016578,2]
[322893979,1713484233430,-350.16,0.00016578,2]
[322893980,1713484233439,-350.16,0.00016578,2]
[322893981,1713484233449,-58180.57701034,0.00016597,2]
[322893982,1713484233462,-375.80686293,0.00016598,2]
[322893983,1713484233472,-1000.0,0.00016598,2]
[322893984,1713484233482,-2067.288,0.00016599,2]
[322893985,1713484233491,-375.80686292,0.00016619,2]
[322893986,1713484233502,-165.55,0.00016637,2]